[Event "Romanian Superliga 2024"]
[Site "Mamaia"]
[Date "2024.10.03"]
[Round "6.7"]
[White "Hamitevici, Vladimir"]
[Black "Petkov, Momchil"]
[Result "1/2-1/2"]
[ECO "B51"]
[WhiteElo "2419"]
[BlackElo "2540"]
[Annotator "RC"]
[PlyCount "73"]
[EventDate "2024.09.26"]
[EventType "team-tourn"]
[EventCountry "ROU"]
[SourceTitle "playchess.com"]
[Source "ChessBase"]
[SourceQuality "1"]
[TimeControl "40/5400+30:1800+30"]

1. e4 {[%emt 0:00:19]} c5 {[%emt 0:00:37]} 2. Nf3 {[%emt 0:00:40]} d6 {[%emt 0:00:16]} 3. Bb5+ {[%emt 0:01:10]} Nd7 {[%emt 0:00:16]} 4. d4 {[%emt 0:02:02]} cxd4 {[%emt 0:00:15]} 5. Qxd4 {[%emt 0:00:11]} a6 {[%emt 0:00:15]} 6. Bxd7+ {[%emt 0:01:22]} Bxd7 {[%emt 0:00:09]} 7. c4 {[%emt 0:01:36]} Nf6 {[%emt 0:03:10]} 8. O-O {[%emt 0:04:52]} e6 {[%emt 0:01:18]} 9. Nc3 {[%emt 0:08:36]} Be7 {[%emt 0:00:29]} 10. Qd3 {[%emt 0:05:14]} O-O {[%emt 0:02:43]} 11. Rd1 {[%emt 0:07:14]} Bc6 {[%emt 0:15:28]} 12. Nd4 {[%emt 0:00:37]} Rc8 {[%emt 0:02:52]} 13. b3 {[%emt 0:01:53]} Qa5 {[%emt 0:01:56]} 14. Bd2 {[%emt 0:03:41]} Qh5 {[%emt 0:01:54]} 15. h3 {[%emt 0:03:58]} Rfd8 {[%emt 0:03:39]} 16. Nxc6 {[%emt 0:04:24]} Rxc6 {[%emt 0:00:25]} 17. Bf4 {[%emt 0:03:14]} Nd7 {[%emt 0:10:16]} 18. Rac1 {[%emt 0:06:52]} Ne5 {[%emt 0:10:31]} 19. Qe2 {[%emt 0:01:14]} Qxe2 {[%emt 0:01:42]} 20. Nxe2 {[%emt 0:01:11]} g5 {[%emt 0:02:13]} 21. Bxe5 {[%emt 0:07:46]} dxe5 {[%emt 0:00:06]} 22. Rxd8+ {[%emt 0:00:02]} Bxd8 {[%emt 0:00:04]} 23. Rd1 {[%emt 0:00:04]} Bc7 {[%emt 0:00:23]} 24. h4 {[%emt 0:00:18]} gxh4 {[%emt 0:06:05]} 25. Kf1 {[%emt 0:05:19]} Kf8 {[%emt 0:11:02]} 26. Nc1 {[%emt 0:08:19]} b5 {[%emt 0:14:24]} 27. cxb5 {[%emt 0:00:09]} axb5 {[%emt 0:00:03]} 28. Nd3 {[%emt 0:00:08]} Ra6 {[%emt 0:01:30]} 29. Nb4 {[%emt 0:07:31]} Ra3 {[%emt 0:00:40]} 30. Ra1 {[%emt 0:03:19]} Bb6 {[%emt 0:01:46]} 31. Nc2 {[%emt 0:00:42]} Ra8 {[%emt 0:00:43]} 32. a4 {[%emt 0:00:15]} Rc8 {[%emt 0:00:22]} 33. Ra2 {[%emt 0:00:20]} Rc3 {[%emt 0:07:18]} 34. a5 {[%emt 0:03:23]} Bxa5 {[%emt 0:00:12]} 35. Rxa5 {[%emt 0:00:07]} Rxc2 {[%emt 0:00:05]} 36. Rxb5 {[%emt 0:00:04]} Rb2 {[%emt 0:00:12]} 37. Rxe5 {[%emt 0:02:37]} 1/2-1/2

[Event "Romanian Superliga 2024"]
[Site "Mamaia"]
[Date "2024.10.03"]
[Round "6.9"]
[White "Filip, Andrei"]
[Black "Ghimpu, Samuel-Timotei"]
[Result "0-1"]
[ECO "B12"]
[WhiteElo "2278"]
[BlackElo "2456"]
[Annotator "RC"]
[PlyCount "64"]
[EventDate "2024.09.26"]
[EventType "team-tourn"]
[EventCountry "ROU"]
[SourceTitle "playchess.com"]
[Source "ChessBase"]
[SourceQuality "1"]
[TimeControl "40/5400+30:1800+30"]

1. e4 {[%emt 0:00:08]} c6 {[%emt 0:16:39]} 2. d4 {[%emt 0:00:09]} d5 {[%emt 0:00:07]} 3. e5 {[%emt 0:00:06]} Bf5 {[%emt 0:04:46]} 4. Nc3 {[%emt 0:00:29]} a6 {[%emt 0:06:41]} 5. Be3 {[%emt 0:07:27]} e6 {[%emt 0:06:45]} 6. g4 {[%emt 0:03:26]} Bg6 {[%emt 0:01:04]} 7. Nge2 {[%emt 0:00:25]} c5 {[%emt 0:01:00]} 8. h4 {[%emt 0:02:55]} h5 {[%emt 0:01:21]} 9. Nf4 {[%emt 0:06:10]} Ne7 {[%emt 0:00:33]} 10. Nxg6 {[%emt 0:08:17]} Nxg6 {[%emt 0:01:09]} 11. Bg5 {[%emt 0:07:42]} Qc7 {[%emt 0:19:11]} 12. gxh5 {[%emt 0:07:07]} Ne7 {[%emt 0:01:26]} 13. dxc5 {[%emt 0:13:31]} Nec6 {[%emt 0:19:43]} 14. Na4 {[%emt 0:12:59]} Nd7 {[%emt 0:01:33]} 15. c4 {[%emt 0:05:14]} Nxc5 {[%emt 0:11:09]} 16. Nxc5 {[%emt 0:17:50]} Bxc5 {[%emt 0:00:06]} 17. cxd5 {[%emt 0:02:10]} Bb4+ {[%emt 0:00:49]} 18. Bd2 {[%emt 0:00:25]} Qxe5+ {[%emt 0:00:19]} 19. Be2 {[%emt 0:00:07]} Qxd5 {[%emt 0:02:07]} 20. Rh3 {[%emt 0:00:56]} Qg2 {[%emt 0:00:21]} 21. Bf1 {[%emt 0:00:24]} Qe4+ {[%emt 0:00:05]} 22. Re3 {[%emt 0:01:24]} Qxh4 {[%emt 0:00:08]} 23. Bxb4 {[%emt 0:00:51]} Qxb4+ {[%emt 0:00:06]} 24. Qd2 {[%emt 0:00:04]} Qxd2+ {[%emt 0:00:09]} 25. Kxd2 {[%emt 0:00:03]} Rxh5 {[%emt 0:00:07]} 26. Bg2 {[%emt 0:00:37]} Rd8+ {[%emt 0:00:19]} 27. Ke1 {[%emt 0:00:35]} Rg5 {[%emt 0:00:58]} 28. Kf1 {[%emt 0:00:11]} Rd2 {[%emt 0:00:17]} 29. Rb1 {[%emt 0:01:23]} Rc5 {[%emt 0:00:49]} 30. Re2 {[%emt 0:00:12]} Rxe2 {[%emt 0:01:08]} 31. Kxe2 {[%emt 0:00:01]} Rc2+ {[%emt 0:00:07]} 32. Ke3 {[%emt 0:00:11]} f5 {[%emt 0:00:06]} 0-1

[Event "Romanian Superliga 2024"]
[Site "Mamaia"]
[Date "2024.10.03"]
[Round "6.13"]
[White "Kozak, Adam"]
[Black "Lashkin, Jegor"]
[Result "0-1"]
[ECO "D39"]
[WhiteElo "2609"]
[BlackElo "2472"]
[Annotator "RC"]
[PlyCount "76"]
[EventDate "2024.09.26"]
[EventType "team-tourn"]
[EventCountry "ROU"]
[SourceTitle "playchess.com"]
[Source "ChessBase"]
[SourceQuality "1"]
[TimeControl "40/5400+30:1800+30"]

1. d4 {[%emt 0:06:19]} Nf6 {[%emt 0:00:15]} 2. c4 {[%emt 0:00:23]} e6 {[%emt 0:00:08]} 3. Nf3 {[%emt 0:00:06]} d5 {[%emt 0:00:09]} 4. Nc3 {[%emt 0:00:04]} Bb4 {[%emt 0:00:15]} 5. Bg5 {[%emt 0:00:17]} dxc4 {[%emt 0:00:18]} 6. e4 {[%emt 0:01:14]} h6 {[%emt 0:00:18]} 7. Bxf6 {[%emt 0:00:15]} Qxf6 {[%emt 0:00:07]} 8. Bxc4 {[%emt 0:01:22]} c5 {[%emt 0:00:13]} 9. O-O {[%emt 0:01:28]} O-O {[%emt 0:00:23]} 10. e5 {[%emt 0:02:10]} Qd8 {[%emt 0:00:13]} 11. Qe2 {[%emt 0:04:07]} cxd4 {[%emt 0:01:35]} 12. Ne4 {[%emt 0:00:54]} Be7 {[%emt 0:00:35]} 13. Rfd1 {[%emt 0:00:53]} Qc7 {[%emt 0:03:38]} 14. Rac1 {[%emt 0:01:20]} Bd7 {[%emt 0:00:15]} 15. Bxe6 {[%emt 0:19:13]} Nc6 {[%emt 0:00:20]} 16. Bd5 {[%emt 0:07:10]} Rad8 {[%emt 0:06:11]} 17. Ng3 {[%emt 0:06:37]} Bg5 {[%emt 0:33:15]} 18. Rc4 {[%emt 0:19:59]} Rfe8 {[%emt 0:09:26]} 19. Qc2 {[%emt 0:19:09]} Qb8 {[%emt 0:26:50]} 20. Ne4 {[%emt 0:00:29]} d3 {[%emt 0:05:58]} 21. Rxd3 {[%emt 0:06:06]} Nxe5 {[%emt 0:01:36]} 22. Nxe5 {[%emt 0:01:12]} Qxe5 {[%emt 0:00:20]} 23. Rc5 {[%emt 0:00:40]} Qe7 {[%emt 0:02:45]} 24. f3 {[%emt 0:00:17]} Kh8 {[%emt 0:01:16]} 25. Qc3 {[%emt 0:00:40]} Bf4 {[%emt 0:00:26]} 26. g3 {[%emt 0:00:31]} Be5 {[%emt 0:00:30]} 27. Qc1 {[%emt 0:00:28]} Be6 {[%emt 0:02:19]} 28. Nf2 {[%emt 0:00:36]} b6 {[%emt 0:00:30]} 29. Rb5 {[%emt 0:00:30]} a6 {[%emt 0:00:18]} 30. Bxe6 {[%emt 0:00:30]} axb5 {[%emt 0:00:07]} 31. Bd5 {[%emt 0:00:05]} Qc5 {[%emt 0:00:45]} 32. Qd2 {[%emt 0:00:50]} Bxb2 {[%emt 0:00:56]} 33. Kg2 {[%emt 0:00:01]} Bc3 {[%emt 0:00:44]} 34. Qd1 {[%emt 0:00:20]} Re1 {[%emt 0:00:35]} 35. Qc2 {[%emt 0:00:01]} Bd4 {[%emt 0:00:25]} 36. Qd2 {[%emt 0:01:03]} Bxf2 {[%emt 0:00:11]} 37. Bxf7 {[%emt 0:00:18]} Rg1+ {[%emt 0:00:06]} 38. Kh3 {[%emt 0:00:04]} Qf5+ {[%emt 0:00:05]} 0-1

[Event "Romanian Superliga 2024"]
[Site "Mamaia"]
[Date "2024.10.03"]
[Round "6.14"]
[White "Ogleznev, Alexandr"]
[Black "Tarlev, Konstantin"]
[Result "1/2-1/2"]
[ECO "B51"]
[WhiteElo "2301"]
[BlackElo "2579"]
[Annotator "RC"]
[PlyCount "58"]
[EventDate "2024.09.26"]
[EventType "team-tourn"]
[EventCountry "ROU"]
[SourceTitle "playchess.com"]
[Source "ChessBase"]
[SourceQuality "1"]
[TimeControl "40/5400+30:1800+30"]

1. e4 {[%emt 0:00:04]} c5 {[%emt 0:01:39]} 2. Nf3 {[%emt 0:00:08]} d6 {[%emt 0:00:04]} 3. Bb5+ {[%emt 0:00:20]} Nc6 {[%emt 0:00:05]} 4. O-O {[%emt 0:00:38]} Bd7 {[%emt 0:00:44]} 5. Re1 {[%emt 0:01:01]} Nf6 {[%emt 0:00:29]} 6. c3 {[%emt 0:00:27]} a6 {[%emt 0:00:03]} 7. Bf1 {[%emt 0:00:06]} Bg4 {[%emt 0:00:21]} 8. d4 {[%emt 0:00:19]} cxd4 {[%emt 0:20:42]} 9. cxd4 {[%emt 0:00:11]} e5 {[%emt 0:00:07]} 10. d5 {[%emt 0:00:16]} Nd4 {[%emt 0:00:02]} 11. Be3 {[%emt 0:00:09]} Nxf3+ {[%emt 0:01:31]} 12. gxf3 {[%emt 0:00:20]} Bd7 {[%emt 0:00:02]} 13. Nd2 {[%emt 0:00:38]} Be7 {[%emt 0:00:27]} 14. Nc4 {[%emt 0:02:25]} b5 {[%emt 0:00:59]} 15. Nb6 {[%emt 0:08:31]} Rb8 {[%emt 0:00:11]} 16. Nxd7 {[%emt 0:00:09]} Nxd7 {[%emt 0:00:03]} 17. Rc1 {[%emt 0:24:18]} Bg5 {[%emt 0:06:28]} 18. Rc6 {[%emt 0:00:14]} Bxe3 {[%emt 0:06:22]} 19. Rxe3 {[%emt 0:07:37]} Nb6 {[%emt 0:06:07]} 20. Ra3 {[%emt 0:11:21]} Ra8 {[%emt 0:38:20]} 21. Qd2 {[%emt 0:07:05]} O-O {[%emt 0:00:11]} 22. Qb4 {[%emt 0:03:58]} Qg5+ {[%emt 0:01:45]} 23. Kh1 {[%emt 0:00:28]} Nc8 {[%emt 0:13:24]} 24. Raxa6 {[%emt 0:08:06]} Ne7 {[%emt 0:01:35]} 25. Rxa8 {[%emt 0:08:22]} Rxa8 {[%emt 0:00:02]} 26. Rc7 {[%emt 0:01:33]} Qf6 {[%emt 0:01:04]} 27. Qc3 {[%emt 0:05:48]} b4 {[%emt 0:00:13]} 28. Qb3 {[%emt 0:01:38]} h5 {[%emt 0:00:37]} 29. Rc4 {[%emt 0:00:59]} Rxa2 {[%emt 0:00:47]} 1/2-1/2

[Event "Romanian Superliga 2024"]
[Site "Mamaia"]
[Date "2024.10.03"]
[Round "6.19"]
[White "Motylev, Alexander"]
[Black "Baranciuc, Alexandr"]
[Result "1-0"]
[ECO "C71"]
[WhiteElo "2582"]
[BlackElo "2333"]
[Annotator "RC"]
[PlyCount "43"]
[EventDate "2024.09.26"]
[EventType "team-tourn"]
[EventCountry "ROU"]
[SourceTitle "playchess.com"]
[Source "ChessBase"]
[SourceQuality "1"]
[TimeControl "40/5400+30:1800+30"]

1. e4 {[%emt 0:02:10]} e5 {[%emt 0:00:21]} 2. Nf3 {[%emt 0:00:12]} Nc6 {[%emt 0:00:06]} 3. Bb5 {[%emt 0:00:05]} a6 {[%emt 0:00:23]} 4. Ba4 {[%emt 0:00:06]} d6 {[%emt 0:00:09]} 5. Nc3 {[%emt 0:00:21]} Bd7 {[%emt 0:00:35]} 6. Bxc6 {[%emt 0:00:25]} bxc6 {[%emt 0:00:28]} 7. d4 {[%emt 0:00:06]} exd4 {[%emt 0:00:18]} 8. Qxd4 {[%emt 0:00:05]} c5 {[%emt 0:03:13]} 9. Qd3 {[%emt 0:00:37]} Nf6 {[%emt 0:02:54]} 10. Bf4 {[%emt 0:02:09]} Be7 {[%emt 0:01:40]} 11. O-O-O {[%emt 0:01:39]} O-O {[%emt 0:06:40]} 12. e5 {[%emt 0:02:41]} dxe5 {[%emt 0:02:32]} 13. Nxe5 {[%emt 0:12:56]} Be6 {[%emt 0:18:44]} 14. Nc6 {[%emt 0:05:20]} Qe8 {[%emt 0:00:05]} 15. Nxe7+ {[%emt 0:00:16]} Qxe7 {[%emt 0:00:01]} 16. Qg3 {[%emt 0:00:34]} Rac8 {[%emt 0:07:24]} 17. Bg5 {[%emt 0:11:28]} c4 {[%emt 0:10:02]} 18. Rhe1 {[%emt 0:04:56]} c6 {[%emt 0:10:29]} 19. Ne4 {[%emt 0:01:28]} Nxe4 {[%emt 0:00:06]} 20. Bxe7 {[%emt 0:02:52]} Nxg3 {[%emt 0:00:05]} 21. Bxf8 {[%emt 0:00:19]} Nh5 {[%emt 0:00:36]} 22. Bd6 {[%emt 0:05:22]} 1-0

[Event "Romanian Superliga 2024"]
[Site "Mamaia"]
[Date "2024.10.03"]
[Round "6.21"]
[White "Gavrilescu, David"]
[Black "Tamas, Christian-Arrydan"]
[Result "1-0"]
[ECO "B12"]
[WhiteElo "2547"]
[BlackElo "2137"]
[Annotator "RC"]
[PlyCount "55"]
[EventDate "2024.09.26"]
[EventType "team-tourn"]
[EventCountry "ROU"]
[SourceTitle "playchess.com"]
[Source "ChessBase"]
[SourceQuality "1"]
[TimeControl "40/5400+30:1800+30"]

1. e4 {[%emt 0:00:39]} c6 {[%emt 0:00:07]} 2. d4 {[%emt 0:00:20]} d5 {[%emt 0:00:06]} 3. e5 {[%emt 0:00:22]} c5 {[%emt 0:00:05]} 4. dxc5 {[%emt 0:00:43]} e6 {[%emt 0:00:05]} 5. c3 {[%emt 0:00:32]} Nd7 {[%emt 0:00:09]} 6. Nf3 {[%emt 0:00:24]} Bxc5 {[%emt 0:00:09]} 7. Nbd2 {[%emt 0:00:40]} Ne7 {[%emt 0:00:34]} 8. Nb3 {[%emt 0:00:34]} Qc7 {[%emt 0:01:09]} 9. Bf4 {[%emt 0:02:10]} Ng6 {[%emt 0:05:51]} 10. Bg3 {[%emt 0:01:40]} Be7 {[%emt 0:00:23]} 11. Qd4 {[%emt 0:01:13]} Qb6 {[%emt 0:15:13]} 12. h4 {[%emt 0:08:38]} f6 {[%emt 0:01:24]} 13. exf6 {[%emt 0:04:03]} Bxf6 {[%emt 0:00:15]} 14. Qxb6 {[%emt 0:01:04]} Nxb6 {[%emt 0:00:53]} 15. Bd3 {[%emt 0:00:08]} O-O {[%emt 0:10:07]} 16. O-O-O {[%emt 0:14:18]} e5 {[%emt 0:09:23]} 17. h5 {[%emt 0:07:16]} Nf4 {[%emt 0:00:08]} 18. Bxf4 {[%emt 0:00:06]} exf4 {[%emt 0:00:06]} 19. Nfd4 {[%emt 0:00:09]} Re8 {[%emt 0:02:10]} 20. Nc5 {[%emt 0:03:34]} Nc4 {[%emt 0:07:47]} 21. Nb5 {[%emt 0:09:55]} Bg4 {[%emt 0:18:15]} 22. f3 {[%emt 0:01:43]} Rec8 {[%emt 0:00:26]} 23. Bxc4 {[%emt 0:02:58]} dxc4 {[%emt 0:01:12]} 24. Ne4 {[%emt 0:01:05]} Be6 {[%emt 0:05:56]} 25. Nxf6+ {[%emt 0:02:01]} gxf6 {[%emt 0:00:06]} 26. Rd6 {[%emt 0:02:29]} Kf7 {[%emt 0:05:26]} 27. Re1 {[%emt 0:00:45]} Bf5 {[%emt 0:00:46]} 28. Rd5 {[%emt 0:00:24]} 1-0

[Event "Romanian Superliga 2024"]
[Site "Mamaia"]
[Date "2024.10.03"]
[Round "6.22"]
[White "Dodoi, Matei-Teodor"]
[Black "Costachi, Mihnea"]
[Result "1/2-1/2"]
[ECO "E69"]
[WhiteElo "2091"]
[BlackElo "2472"]
[Annotator "RC"]
[PlyCount "106"]
[EventDate "2024.09.26"]
[EventType "team-tourn"]
[EventCountry "ROU"]
[SourceTitle "playchess.com"]
[Source "ChessBase"]
[SourceQuality "1"]
[TimeControl "40/5400+30:1800+30"]

1. d4 {[%emt 0:00:09]} Nf6 {[%emt 0:00:10]} 2. c4 {[%emt 0:00:08]} g6 {[%emt 0:00:05]} 3. Nf3 {[%emt 0:00:08]} Bg7 {[%emt 0:00:03]} 4. g3 {[%emt 0:00:22]} O-O {[%emt 0:00:12]} 5. Bg2 {[%emt 0:00:10]} d6 {[%emt 0:01:29]} 6. O-O {[%emt 0:00:15]} Nbd7 {[%emt 0:04:29]} 7. Nc3 {[%emt 0:00:14]} e5 {[%emt 0:00:32]} 8. e4 {[%emt 0:00:34]} c6 {[%emt 0:01:14]} 9. h3 {[%emt 0:01:06]} Re8 {[%emt 0:02:28]} 10. Re1 {[%emt 0:01:39]} a6 {[%emt 0:01:14]} 11. Qc2 {[%emt 0:06:54]} b5 {[%emt 0:05:20]} 12. c5 {[%emt 0:05:00]} exd4 {[%emt 0:07:01]} 13. Nxd4 {[%emt 0:00:16]} dxc5 {[%emt 0:00:16]} 14. Nxc6 {[%emt 0:14:39]} Qb6 {[%emt 0:00:34]} 15. Be3 {[%emt 0:01:57]} Bb7 {[%emt 0:33:45]} 16. Nb4 {[%emt 0:00:34]} Qe6 {[%emt 0:01:46]} 17. Nbd5 {[%emt 0:04:56]} Rac8 {[%emt 0:00:52]} 18. Rad1 {[%emt 0:16:39]} b4 {[%emt 0:03:48]} 19. Nf4 {[%emt 0:00:54]} Qe5 {[%emt 0:05:01]} 20. Nd3 {[%emt 0:02:44]} Qc7 {[%emt 0:11:36]} 21. Nd5 {[%emt 0:03:36]} Qa5 {[%emt 0:00:14]} 22. Nxf6+ {[%emt 0:22:13]} Nxf6 {[%emt 0:03:52]} 23. Nxc5 {[%emt 0:02:08]} Bxe4 {[%emt 0:02:04]} 24. Bxe4 {[%emt 0:02:20]} Rxe4 {[%emt 0:08:49]} 25. Rc1 {[%emt 0:08:07]} Qxa2 {[%emt 0:02:13]} 26. Nxe4 {[%emt 0:01:50]} Rxc2 {[%emt 0:00:01]} 27. Rxc2 {[%emt 0:00:35]} h6 {[%emt 0:02:34]} 28. Nxf6+ {[%emt 0:03:42]} Bxf6 {[%emt 0:00:01]} 29. Bxh6 {[%emt 0:00:34]} Qb3 {[%emt 0:00:05]} 30. Ree2 {[%emt 0:00:32]} Qf3 {[%emt 0:00:34]} 31. Be3 {[%emt 0:00:31]} a5 {[%emt 0:00:45]} 32. Red2 {[%emt 0:00:28]} Qf5 {[%emt 0:01:01]} 33. Rc5 {[%emt 0:00:31]} Qb1+ {[%emt 0:00:34]} 34. Kh2 {[%emt 0:00:04]} a4 {[%emt 0:00:24]} 35. Rc4 {[%emt 0:00:57]} a3 {[%emt 0:02:08]} 36. bxa3 {[%emt 0:00:04]} bxa3 {[%emt 0:00:32]} 37. Ra4 {[%emt 0:00:43]} Qb3 {[%emt 0:00:08]} 38. Ra8+ {[%emt 0:00:18]} Kg7 {[%emt 0:00:31]} 39. h4 {[%emt 0:00:52]} Bb2 {[%emt 0:00:37]} 40. Rd7 {[%emt 0:00:00]} a2 {[%emt 0:00:00]} 41. Rda7 {[%emt 0:04:04]} a1=R {[%emt 0:02:00]} 42. Rxa1 {[%emt 0:00:19]} Bxa1 {[%emt 0:00:02]} 43. Rxa1 {[%emt 0:00:08]} Kf6 {[%emt 0:00:50]} 44. Ra5 {[%emt 0:00:34]} Qc2 {[%emt 0:03:16]} 45. Rc5 {[%emt 0:00:22]} Qa2 {[%emt 0:00:07]} 46. h5 {[%emt 0:01:33]} gxh5 {[%emt 0:00:01]} 47. Rxh5 {[%emt 0:00:08]} Ke6 {[%emt 0:00:18]} 48. Rh4 {[%emt 0:00:12]} f5 {[%emt 0:00:21]} 49. Rf4 {[%emt 0:00:23]} Qe2 {[%emt 0:00:22]} 50. Rh4 {[%emt 0:00:32]} Qf3 {[%emt 0:00:12]} 51. Rf4 {[%emt 0:00:09]} Qd1 {[%emt 0:00:31]} 52. Rh4 {[%emt 0:00:08]} Qf3 {[%emt 0:00:24]} 53. Rf4 {[%emt 0:00:06]} Qd1 {[%emt 0:00:31]} 1/2-1/2

[Event "Romanian Superliga 2024"]
[Site "Mamaia"]
[Date "2024.10.03"]
[Round "6.23"]
[White "Georgescu, Tiberiu-Marian"]
[Black "Costache, Andrei Eugeniu"]
[Result "0-1"]
[ECO "D30"]
[WhiteElo "2466"]
[BlackElo "1977"]
[Annotator "RC"]
[PlyCount "80"]
[EventDate "2024.09.26"]
[EventType "team-tourn"]
[EventCountry "ROU"]
[SourceTitle "playchess.com"]
[Source "ChessBase"]
[SourceQuality "1"]
[TimeControl "40/5400+30:1800+30"]

1. d4 {[%emt 0:02:28]} Nf6 {[%emt 0:00:21]} 2. Nf3 {[%emt 0:00:41]} e6 {[%emt 0:00:58]} 3. c4 {[%emt 0:02:09]} d5 {[%emt 0:00:11]} 4. e3 {[%emt 0:00:12]} Bb4+ {[%emt 0:02:19]} 5. Bd2 {[%emt 0:00:29]} Be7 {[%emt 0:00:08]} 6. Nc3 {[%emt 0:01:14]} O-O {[%emt 0:01:09]} 7. Rc1 {[%emt 0:01:32]} b6 {[%emt 0:02:48]} 8. cxd5 {[%emt 0:01:14]} exd5 {[%emt 0:00:09]} 9. Bd3 {[%emt 0:00:17]} Bb7 {[%emt 0:01:45]} 10. Ne5 {[%emt 0:15:48]} c5 {[%emt 0:03:58]} 11. O-O {[%emt 0:07:46]} Nc6 {[%emt 0:04:16]} 12. Nxc6 {[%emt 0:14:31]} Bxc6 {[%emt 0:00:20]} 13. dxc5 {[%emt 0:03:02]} bxc5 {[%emt 0:02:10]} 14. Ne2 {[%emt 0:03:00]} Bd6 {[%emt 0:05:53]} 15. Nd4 {[%emt 0:08:12]} Bd7 {[%emt 0:09:06]} 16. Nf5 {[%emt 0:02:11]} Be5 {[%emt 0:06:42]} 17. f4 {[%emt 0:03:16]} Bxb2 {[%emt 0:02:35]} 18. Rxc5 {[%emt 0:00:23]} Qb6 {[%emt 0:09:27]} 19. Ne7+ {[%emt 0:09:21]} Kh8 {[%emt 0:00:33]} 20. Ra5 {[%emt 0:00:02]} d4 {[%emt 0:15:37]} 21. e4 {[%emt 0:05:46]} Bc3 {[%emt 0:02:58]} 22. Rg5 {[%emt 0:01:37]} Qb4 {[%emt 0:01:57]} 23. Nd5 {[%emt 0:14:59]} Nxd5 {[%emt 0:01:39]} 24. Rxd5 {[%emt 0:00:03]} Bc6 {[%emt 0:00:44]} 25. a3 {[%emt 0:00:11]} Qxa3 {[%emt 0:03:08]} 26. Bc1 {[%emt 0:00:11]} Qa4 {[%emt 0:02:02]} 27. Bc2 {[%emt 0:01:09]} Qb4 {[%emt 0:04:54]} 28. Rh5 {[%emt 0:01:05]} Qb7 {[%emt 0:04:40]} 29. Qd3 {[%emt 0:01:12]} g6 {[%emt 0:00:43]} 30. Rc5 {[%emt 0:00:40]} a6 {[%emt 0:02:48]} 31. Rxc3 {[%emt 0:00:45]} dxc3 {[%emt 0:00:18]} 32. Qxc3+ {[%emt 0:00:02]} f6 {[%emt 0:01:06]} 33. e5 {[%emt 0:00:57]} Rac8 {[%emt 0:01:14]} 34. exf6 {[%emt 0:00:30]} Bxg2 {[%emt 0:02:13]} 35. Qd4 {[%emt 0:00:09]} Rfd8 {[%emt 0:01:15]} 36. Qe5 {[%emt 0:00:14]} Rd5 {[%emt 0:01:12]} 37. Qa1 {[%emt 0:00:31]} Kg8 {[%emt 0:03:04]} 38. Rf2 {[%emt 0:01:06]} Rxc2 {[%emt 0:00:14]} 39. f7+ {[%emt 0:00:22]} Kxf7 {[%emt 0:00:12]} 40. f5 {[%emt 0:00:00]} Rd1+ {[%emt 0:00:00]} 0-1

[Event "Romanian Superliga 2024"]
[Site "Mamaia"]
[Date "2024.10.03"]
[Round "6.24"]
[White "Codru, Raul Cristian"]
[Black "Tudor, Henry Edward"]
[Result "0-1"]
[ECO "E35"]
[WhiteElo "1786"]
[BlackElo "2347"]
[Annotator "RC"]
[PlyCount "50"]
[EventDate "2024.09.26"]
[EventType "team-tourn"]
[EventCountry "ROU"]
[SourceTitle "playchess.com"]
[Source "ChessBase"]
[SourceQuality "1"]
[TimeControl "40/5400+30:1800+30"]

1. d4 {[%emt 0:00:03]} Nf6 {[%emt 0:00:55]} 2. c4 {[%emt 0:00:14]} e6 {[%emt 0:00:04]} 3. Nc3 {[%emt 0:00:04]} Bb4 {[%emt 0:00:09]} 4. Qc2 {[%emt 0:00:05]} d5 {[%emt 0:00:06]} 5. cxd5 {[%emt 0:01:14]} exd5 {[%emt 0:00:08]} 6. Bg5 {[%emt 0:00:56]} h6 {[%emt 0:00:08]} 7. Bh4 {[%emt 0:01:13]} g5 {[%emt 0:00:12]} 8. Bg3 {[%emt 0:00:07]} Ne4 {[%emt 0:00:07]} 9. e3 {[%emt 0:04:32]} h5 {[%emt 0:00:19]} 10. f3 {[%emt 0:05:20]} Nxg3 {[%emt 0:00:29]} 11. hxg3 {[%emt 0:00:02]} Nc6 {[%emt 0:02:26]} 12. a3 {[%emt 0:10:27]} Bxc3+ {[%emt 0:12:56]} 13. Qxc3 {[%emt 0:00:21]} Qd6 {[%emt 0:00:09]} 14. Ne2 {[%emt 0:07:48]} Bd7 {[%emt 0:06:35]} 15. g4 {[%emt 0:11:27]} h4 {[%emt 0:01:56]} 16. Rc1 {[%emt 0:03:05]} b6 {[%emt 0:13:25]} 17. Kf2 {[%emt 0:16:50]} O-O-O {[%emt 0:08:11]} 18. b4 {[%emt 0:08:53]} Ne7 {[%emt 0:06:32]} 19. Qd3 {[%emt 0:05:26]} Kb8 {[%emt 0:11:03]} 20. Nc3 {[%emt 0:09:59]} f5 {[%emt 0:06:12]} 21. gxf5 {[%emt 0:02:18]} Nxf5 {[%emt 0:01:08]} 22. Nb5 {[%emt 0:03:32]} Qg3+ {[%emt 0:02:11]} 23. Kg1 {[%emt 0:01:12]} h3 {[%emt 0:00:35]} 24. Rh2 {[%emt 0:00:57]} Nh4 {[%emt 0:00:24]} 25. Qe2 {[%emt 0:02:20]} hxg2 {[%emt 0:00:13]} 0-1